fUSD/lending_fUSD_20250111
["ID","MTS","AMOUNT","RATE_DAILY","PERIOD"]
[348509665,1736596273999,-500.0,0.00011268,2]
[348509666,1736596274008,-500.0,0.00011268,2]
[348509667,1736596274018,-500.0,0.00011268,2]
[348509668,1736596274027,-500.0,0.00011268,2]
[348509669,1736596274037,-500.0,0.00011268,2]
[348509670,1736596274047,-970.25,0.00011268,2]
[348509671,1736596274057,-771.92,0.00011268,2]
[348509672,1736596274067,-500.0,0.00011268,2]
[348509673,1736596274076,-500.0,0.00011268,2]
[348509674,1736596274086,-500.0,0.00011268,2]
[348509675,1736596274096,-500.0,0.00011268,2]
[348509676,1736596274107,-622.0,0.00011268,2]
[348509677,1736596274116,-500.0,0.00011268,2]
[348509678,1736596274126,-940.82,0.00011268,2]
[348509679,1736596274135,-500.0,0.00011268,2]
[348509680,1736596274145,-500.0,0.00011268,2]
[348509681,1736596274154,-500.0,0.00011268,2]
[348509682,1736596274164,-500.0,0.00011268,2]
[348509683,1736596274174,-500.0,0.00011268,2]
[348509684,1736596274184,-500.0,0.00011268,2]
[348509685,1736596274193,-500.0,0.00011268,2]
[348509686,1736596274204,-500.0,0.00011268,2]
[348509687,1736596274214,-500.0,0.00011268,2]
[348509688,1736596274224,-236.28,0.00011268,2]
[348509689,1736596274234,-785.37,0.00011268,2]
[348509690,1736596274243,-500.0,0.00011268,2]
[348509691,1736596274252,-500.0,0.00011268,2]
[348509692,1736596274261,-500.0,0.00011268,2]
[348509693,1736596274271,-500.0,0.00011268,2]
[348509694,1736596274280,-623.35,0.00011268,2]
[348509695,1736596274290,-500.0,0.00011268,2]
[348509696,1736596274303,-500.0,0.00011268,2]
[348509697,1736596274313,-500.0,0.00011268,2]
[348509698,1736596274322,-500.0,0.00011268,2]
[348509699,1736596274331,-500.0,0.00011268,2]
[348509700,1736596274342,-767.07,0.00011268,2]
[348509701,1736596274354,-500.0,0.00011268,2]
[348509702,1736596274363,-500.0,0.00011268,2]
[348509703,1736596274373,-807.87,0.00011268,2]
[348509704,1736596274383,-500.0,0.00011268,2]
[348509705,1736596274392,-545.4,0.00011268,2]
[348509706,1736596274403,-655.09,0.00011268,2]
[348509707,1736596274412,-500.0,0.00011268,2]
[348509708,1736596274422,-565.57,0.00011268,2]
[348509709,1736596274431,-500.0,0.00011268,2]
[348509710,1736596274441,-500.0,0.00011268,2]
[348509711,1736596274450,-338.26568075,0.00011268,2]
[348509712,1736596274459,-500.0,0.00011268,2]
[348509713,1736596274469,-500.0,0.00011268,2]
[348509714,1736596274479,-763.42,0.00011268,2]
[348509715,1736596274488,-875.44,0.00011268,2]
[348509716,1736596274497,-500.0,0.00011268,2]
[348509717,1736596274506,-500.0,0.00011268,2]
[348509718,1736596274515,-500.0,0.00011268,2]
[348509719,1736596274524,-500.0,0.00011268,2]
[348509720,1736596274534,-500.0,0.00011268,2]
[348509721,1736596274543,-500.0,0.00011268,2]
[348509722,1736596274552,-500.0,0.00011268,2]
[348509723,1736596274561,-500.0,0.00011268,2]
[348509724,1736596274570,-820.5,0.00011268,2]
[348509725,1736596274579,-901.65,0.00011268,2]
[348509726,1736596274588,-500.0,0.00011268,2]
[348509727,1736596274598,-500.0,0.00011268,2]
[348509728,1736596274609,-500.0,0.00011268,2]
[348509729,1736596274617,-892.97,0.00011268,2]
[348509730,1736596274626,-500.0,0.00011268,2]
[348509731,1736596274635,-500.0,0.00011268,2]
[348509732,1736596274644,-500.0,0.00011268,2]
[348509733,1736596274654,-500.0,0.00011268,2]
[348509734,1736596274663,-500.0,0.00011268,2]
[348509735,1736596274673,-883.1,0.00011268,2]
[348509736,1736596274682,-500.0,0.00011268,2]
[348509737,1736596274692,-500.0,0.00011268,2]
[348509738,1736596274701,-500.0,0.00011268,2]
[348509739,1736596274711,-601.65,0.00011268,2]
[348509740,1736596274721,-500.0,0.00011268,2]
[348509741,1736596274731,-500.0,0.00011268,2]
[348509742,1736596274741,-500.0,0.00011268,2]
[348509743,1736596274751,-500.0,0.00011268,2]
[348509744,1736596274760,-500.0,0.00011268,2]
[348509745,1736596274769,-500.0,0.00011268,2]
[348509746,1736596274778,-525.07,0.00011268,2]
[348509747,1736596274787,-885.34,0.00011268,2]
[348509748,1736596274797,-500.0,0.00011268,2]
[348509749,1736596274807,-500.0,0.00011268,2]
[348509750,1736596274816,-801.83,0.00011268,2]
[348509751,1736596274826,-500.0,0.00011268,2]
[348509752,1736596274835,-500.0,0.00011268,2]
[348509753,1736596274845,-1000.13,0.00011268,2]
[348509754,1736596274856,-500.0,0.00011268,2]
[348509755,1736596274865,-500.0,0.00011268,2]
[348509756,1736596274875,-500.0,0.00011268,2]
[348509757,1736596274885,-500.0,0.00011268,2]
[348509758,1736596274895,-500.0,0.00011268,2]
[348509759,1736596274905,-500.0,0.00011268,2]
[348509760,1736596274914,-500.0,0.00011268,2]
[348509761,1736596274923,-500.0,0.00011268,2]
[348509762,1736596274933,-672.82,0.00011268,2]
[348509763,1736596274942,-500.0,0.00011268,2]
[348509764,1736596274952,-4278.41,0.00011268,2]
[348509765,1736596274961,-500.0,0.00011268,2]
[348509766,1736596274970,-500.0,0.00011268,2]
[348509767,1736596274980,-500.0,0.00011268,2]
[348509768,1736596274990,-500.0,0.00011268,2]
[348509769,1736596275000,-500.0,0.00011268,2]
[348509770,1736596275010,-879.57,0.00011268,2]
[348509771,1736596275020,-500.0,0.00011268,2]
[348509772,1736596275030,-844.74,0.00011268,2]
[348509773,1736596275039,-500.0,0.00011268,2]
[348509774,1736596275048,-814.37,0.00011268,2]
[348509775,1736596275058,-609.37,0.00011268,2]
[348509776,1736596275067,-500.0,0.00011268,2]
[348509777,1736596275077,-500.0,0.00011268,2]
[348509778,1736596275087,-2856.04,0.00011268,2]
[348509779,1736596275096,-500.0,0.00011268,2]
[348509780,1736596275108,-500.0,0.00011268,2]
[348509781,1736596275118,-500.0,0.00011268,2]
[348509782,1736596275127,-610.95,0.00011268,2]
[348509783,1736596275137,-514.77,0.00011268,2]
[348509784,1736596275147,-1172.7,0.00011268,2]
[348509785,1736596275156,-500.0,0.00011268,2]
[348509786,1736596275166,-500.0,0.00011268,2]
[348509787,1736596275177,-587.45,0.00011268,2]
[348509788,1736596275186,-500.0,0.00011268,2]
[348509789,1736596275195,-1377.95,0.00011269,2]
[348509790,1736596275206,-2744.47,0.00011269,2]
[348509791,1736596275215,-1630.7,0.00011269,2]
[348509792,1736596275225,-2556.83,0.00011269,2]
[348509793,1736596275235,-1577.16,0.00011269,2]
[348509794,1736596275244,-3568.78,0.00011269,2]
[348509795,1736596275254,-151.0,0.00011269,2]
[348509796,1736596275263,-500.0,0.00011269,2]
[348509797,1736596275272,-1343.06,0.00011269,2]
[348509798,1736596275282,-500.0,0.00011269,2]
[348509799,1736596275292,-500.0,0.00011269,2]
[348509800,1736596275301,-1196.49,0.00011269,2]
[348509801,1736596275311,-1311.0,0.00011269,2]
[348509802,1736596275320,-1420.14,0.00011269,2]
[348509803,1736596275330,-1360.97,0.00011269,2]
[348509804,1736596275339,-2542.05,0.00011269,2]
[348509805,1736596275348,-1429.7,0.00011269,2]
[348509806,1736596275359,-1960.18,0.00011269,2]
[348509807,1736596275369,-1234.77,0.00011269,2]
[348509808,1736596275379,-1376.49,0.00011269,2]
[348509809,1736596275388,-500.0,0.00011269,2]
[348509810,1736596275398,-1388.63,0.00011269,2]
[348509811,1736596275407,-1741.92,0.00011269,2]
[348509812,1736596275417,-1080.58,0.00011269,2]
[348509813,1736596275427,-1000.0,0.00011301,2]
[348509814,1736596275437,-500.0,0.00011308,2]
[348509815,1736596275447,-800.0,0.00011308,2]
[348509816,1736596275456,-152.0,0.00011315,4]
[348509817,1736596275466,-745.03,0.00011337,2]
[348509818,1736596275475,-429.82131162,0.00011338,2]
[348509819,1736596275484,-212.67,0.00011345,2]
[348509820,1736596275494,-500.0,0.00011368,2]
[348509821,1736596275504,-861.7,0.00011369,2]
[348509822,1736596275514,-850.67,0.00011369,2]
[348509823,1736596275523,-500.0,0.00011369,2]
[348509824,1736596275532,-763.93,0.00011369,2]
[348509825,1736596275542,-500.0,0.00011369,2]
[348509826,1736596275552,-573.38,0.00011369,2]
[348509827,1736596275561,-1034.36,0.00011369,2]
[348509828,1736596275571,-500.0,0.00011369,2]
[348509829,1736596275580,-1165.84,0.00011369,2]
[348509830,1736596275591,-1286.39,0.00011369,2]
[348509831,1736596275600,-1479.36,0.00011369,2]
[348509832,1736596275612,-1184.05,0.00011369,2]
[348509833,1736596275622,-6055.45,0.00011369,2]
[348509834,1736596275632,-1004.16,0.00011369,2]
[348509835,1736596275642,-1557.21,0.00011369,2]
[348509836,1736596275706,-908.38,0.00011369,2]
[348509837,1736596275717,-659.36,0.00011369,2]
[348509838,1736596275727,-500.0,0.00011369,2]
[348509839,1736596275737,-500.0,0.00011369,2]
[348509840,1736596275747,-1000.0,0.00011369,2]
[348509841,1736596275757,-1033.16,0.00011369,2]
[348509842,1736596275768,-585.32,0.00011369,2]
[348509843,1736596275777,-629.59,0.00011369,2]
[348509844,1736596275787,-500.0,0.00011369,2]
[348509845,1736596275797,-500.0,0.00011369,2]
[348509846,1736596275806,-1559.72,0.00011369,2]
[348509847,1736596275816,-638.76,0.00011369,2]
[348509848,1736596275826,-979.96,0.00011369,2]
[348509849,1736596275836,-2504.72,0.00011369,2]
[348509850,1736596275846,-1683.19,0.00011369,2]
[348509851,1736596275857,-500.0,0.00011369,2]
[348509852,1736596275867,-1644.65,0.00011369,2]
[348509853,1736596275877,-635.59,0.00011369,2]
[348509854,1736596275886,-1203.22,0.00011369,2]
[348509855,1736596275897,-2377.44585034,0.00011383,2]
[348509856,1736596275907,-2243.9,0.00011447,3]
[348509857,1736596275918,-32468.96,0.00011447,3]
[348509858,1736596275928,-5077.56,0.00011447,3]
[348509859,1736596275938,-152.0,0.00011475,5]
[348509860,1736596275949,-150.42744298,0.0001148,2]
[348509861,1736596275959,-200.0,0.000115,2]
[348509862,1736596275968,-573.38,0.00011506,2]
[348509863,1736596275978,-2751.0,0.00011507,2]
[348509864,1736596275988,-506.16,0.00011507,2]
[348509865,1736596275998,-150.0,0.00011509,2]
[348509866,1736596276007,-2377.44585034,0.00011521,2]
[348509867,1736596276017,-150.0,0.0001153,2]
[348509868,1736596276027,-753.08,0.0001154,2]
[348509869,1736596276037,-810.39,0.0001154,2]
[348509870,1736596276047,-1341.97,0.0001154,2]
[348509871,1736596276057,-579.03,0.0001154,2]
[348509872,1736596276067,-500.0,0.00011541,2]
[348509873,1736596276076,-1049.23,0.00011541,2]
[348509874,1736596276086,-500.0,0.00011541,2]
[348509875,1736596276095,-500.0,0.00011541,2]
[348509876,1736596276105,-511.83,0.00011541,2]
[348509877,1736596276114,-1193.263054,0.00011541,2]
[348509878,1736596276124,-500.0,0.00011541,2]
[348509879,1736596276134,-500.0,0.00011541,2]
[348509880,1736596276144,-1195.58,0.00011541,2]
[348509881,1736596276154,-1138.610443,0.00011541,2]
[348509882,1736596276163,-162.596553,0.00011541,2]
[348509883,1736596276173,-500.0,0.00011541,2]
[348509884,1736596276182,-727.53,0.00011541,2]
[348509885,1736596276191,-500.0,0.00011541,2]
[348509886,1736596276203,-411.28,0.00011541,2]
[348509887,1736596276212,-1528.87,0.00011541,2]
[348509888,1736596276222,-3208.76,0.00011541,2]
[348509889,1736596276231,-500.0,0.00011541,2]
[348509890,1736596276240,-4379.77,0.00011541,2]
[348509891,1736596276251,-500.0,0.00011541,2]
[348509892,1736596276260,-706.78,0.00011541,2]
[348509893,1736596276270,-500.0,0.00011541,2]
[348509894,1736596276279,-500.0,0.00011541,2]
[348509895,1736596276288,-510.47,0.00011541,2]
[348509896,1736596276297,-500.0,0.00011541,2]
[348509897,1736596276309,-1939.28,0.00011541,2]
[348509898,1736596276319,-500.0,0.00011541,2]
[348509899,1736596276328,-1448.55,0.00011541,2]
[348509900,1736596276338,-833.11,0.00011541,2]
[348509901,1736596276348,-500.0,0.00011541,2]
[348509902,1736596276360,-500.0,0.00011541,2]
[348509903,1736596276370,-2293.1,0.00011541,2]
[348509904,1736596276380,-500.0,0.00011541,2]
[348509905,1736596276390,-500.0,0.00011541,2]
[348509906,1736596276399,-2381.62,0.00011541,2]
[348509907,1736596276408,-2417.04,0.00011541,2]
[348509908,1736596276418,-1391.2,0.00011541,2]
[348509909,1736596276428,-500.0,0.00011541,2]
[348509910,1736596276437,-500.0,0.00011541,2]
[348509911,1736596276446,-500.0,0.00011541,2]
[348509912,1736596276456,-500.0,0.00011541,2]
[348509913,1736596276465,-1904.23,0.00011541,2]
[348509914,1736596276475,-500.0,0.00011541,2]
[348509915,1736596276485,-4285.14,0.00011541,2]
[348509916,1736596276495,-1461.62,0.00011541,2]
[348509917,1736596276505,-321.2994457,0.00011541,2]
[348509918,1736596276514,-958.11,0.00011541,2]
[348509919,1736596276524,-1217.3,0.00011541,2]
[348509920,1736596276533,-958.31,0.00011541,2]
[348509921,1736596276542,-2809.65,0.00011541,2]
[348509922,1736596276552,-500.0,0.00011541,2]
[348509923,1736596276561,-1965.23,0.00011541,2]
[348509924,1736596276571,-523.72,0.00011541,2]
[348509925,1736596276581,-3459.51,0.00011541,2]
[348509926,1736596276591,-500.0,0.00011541,2]
[348509927,1736596276600,-500.0,0.00011541,2]
[348509928,1736596276611,-337.62301205,0.00011541,2]
[348509929,1736596276621,-2015.36,0.00011541,2]
[348509930,1736596276631,-1189.62,0.00011541,2]
[348509931,1736596276640,-500.0,0.00011541,2]
[348509932,1736596276650,-500.0,0.00011541,2]
[348509933,1736596276660,-1834.7,0.00011541,2]
[348509934,1736596276670,-1463.75,0.00011541,2]
[348509935,1736596276680,-500.0,0.00011541,2]
[348509936,1736596276689,-947.2,0.00011541,2]
[348509937,1736596276699,-500.0,0.00011542,2]
[348509938,1736596276709,-500.0,0.00011542,2]
[348509939,1736596276719,-500.0,0.00011542,2]
[348509940,1736596276728,-500.0,0.00011542,2]
[348509941,1736596276738,-500.0,0.00011542,2]
[348509942,1736596276748,-500.0,0.00011542,2]
[348509943,1736596276758,-500.0,0.00011542,2]
[348509944,1736596276768,-500.0,0.00011542,2]
[348509945,1736596276778,-500.0,0.00011542,2]
[348509946,1736596276788,-500.0,0.00011542,2]
[348509947,1736596276798,-500.0,0.00011542,2]
[348509948,1736596276807,-500.0,0.00011542,2]
[348509949,1736596276817,-500.0,0.00011542,2]
[348509950,1736596276827,-500.0,0.00011542,2]
[348509951,1736596276837,-500.0,0.00011542,2]
[348509952,1736596276847,-500.0,0.00011542,2]
[348509953,1736596276857,-500.0,0.00011542,2]
[348509954,1736596276868,-259.43056555,0.00011542,2]
[348509955,1736596276877,-500.0,0.00011542,2]
[348509956,1736596276887,-500.0,0.00011542,2]
[348509957,1736596276897,-500.0,0.00011542,2]
[348509958,1736596276910,-500.0,0.00011542,2]
[348509959,1736596276920,-500.0,0.00011542,2]
[348509960,1736596276929,-500.0,0.00011542,2]
[348509961,1736596276939,-500.0,0.00011542,2]
[348509962,1736596276948,-500.0,0.00011542,2]
[348509963,1736596276958,-500.0,0.00011542,2]
[348509964,1736596276968,-500.0,0.00011542,2]
[348509965,1736596276977,-500.0,0.00011542,2]
[348509966,1736596276987,-500.0,0.00011542,2]
[348509967,1736596276996,-500.0,0.00011542,2]
[348509968,1736596277006,-562.09,0.00011542,2]
[348509969,1736596277016,-500.0,0.00011542,2]
[348509970,1736596277025,-161.62,0.00011542,2]
[348509971,1736596277036,-500.0,0.00011542,2]
[348509972,1736596277045,-500.0,0.00011542,2]
[348509973,1736596277055,-500.0,0.00011542,2]
[348509974,1736596277065,-500.0,0.00011542,2]
[348509975,1736596277074,-500.0,0.00011542,2]
[348509976,1736596277084,-500.0,0.00011542,2]
[348509977,1736596277094,-500.0,0.00011542,2]
[348509978,1736596277105,-500.0,0.00011542,2]
[348509979,1736596277115,-500.0,0.00011542,2]
[348509980,1736596277124,-500.0,0.00011542,2]
[348509981,1736596277134,-500.0,0.00011542,2]
[348509982,1736596277144,-500.0,0.00011542,2]
[348509983,1736596277154,-500.0,0.00011542,2]
[348509984,1736596277163,-500.0,0.00011542,2]
[348509985,1736596277173,-500.0,0.00011542,2]
[348509986,1736596277183,-500.0,0.00011542,2]
[348509987,1736596277193,-500.0,0.00011542,2]
[348509988,1736596277203,-500.0,0.00011542,2]
[348509989,1736596277213,-566.78,0.00011542,2]
[348509990,1736596277223,-500.0,0.00011542,2]
[348509991,1736596277232,-500.0,0.00011542,2]
[348509992,1736596277242,-500.0,0.00011542,2]
[348509993,1736596277252,-500.0,0.00011542,2]
[348509994,1736596277262,-500.0,0.00011542,2]
[348509995,1736596277272,-500.0,0.00011542,2]
[348509996,1736596277282,-500.0,0.00011542,2]
[348509997,1736596277291,-500.0,0.00011542,2]
[348509998,1736596277301,-500.0,0.00011542,2]
[348509999,1736596277313,-500.0,0.00011542,2]
[348510000,1736596277323,-500.0,0.00011542,2]
[348510001,1736596277333,-182.07633552,0.00011542,2]
[348510002,1736596277343,-500.0,0.00011542,2]
[348510003,1736596277352,-500.0,0.00011542,2]
[348510004,1736596277363,-500.0,0.00011542,2]
[348510005,1736596277373,-500.0,0.00011542,2]
[348510006,1736596277382,-500.0,0.00011542,2]
[348510007,1736596277392,-500.0,0.00011542,2]
[348510008,1736596277402,-500.0,0.00011542,2]
[348510009,1736596277412,-500.0,0.00011542,2]
[348510010,1736596277423,-500.0,0.00011542,2]
[348510011,1736596277434,-500.0,0.00011542,2]
[348510012,1736596277444,-500.0,0.00011542,2]
[348510013,1736596277454,-500.0,0.00011542,2]
[348510014,1736596277464,-500.0,0.00011542,2]
[348510015,1736596277474,-500.0,0.00011542,2]
[348510016,1736596277484,-500.0,0.00011542,2]
[348510017,1736596277494,-500.0,0.00011542,2]
[348510018,1736596277504,-985.13,0.00011542,2]
[348510019,1736596277514,-500.0,0.00011542,2]
[348510020,1736596277523,-500.0,0.00011542,2]
[348510021,1736596277534,-500.0,0.00011542,2]
[348510022,1736596277544,-500.0,0.00011542,2]
[348510023,1736596277554,-500.0,0.00011542,2]
[348510024,1736596277563,-500.0,0.00011542,2]
[348510025,1736596277573,-500.0,0.00011542,2]
[348510026,1736596277584,-687.58,0.00011542,2]
[348510027,1736596277594,-500.0,0.00011542,2]
[348510028,1736596277603,-500.0,0.00011542,2]
[348510029,1736596277614,-500.0,0.00011542,2]
[348510030,1736596277624,-500.0,0.00011542,2]
[348510031,1736596277633,-1005.72,0.00011542,2]
[348510032,1736596277644,-500.0,0.00011542,2]
[348510033,1736596277653,-500.0,0.00011542,2]
[348510034,1736596277663,-297.35,0.00011542,2]
[348510035,1736596277673,-500.0,0.00011542,2]
[348510036,1736596277682,-970.25,0.00011542,2]
[348510037,1736596277693,-771.92,0.00011542,2]
[348510038,1736596277702,-500.0,0.00011542,2]
[348510039,1736596277711,-416.97,0.00011542,2]
[348510040,1736596277721,-500.0,0.00011542,2]
[348510041,1736596277730,-500.0,0.00011542,2]
[348510042,1736596277739,-622.0,0.00011542,2]
[348510043,1736596277749,-500.0,0.00011542,2]
[348510044,1736596277759,-940.82,0.00011542,2]
[348510045,1736596277769,-500.0,0.00011542,2]
[348510046,1736596277779,-500.0,0.00011542,2]
[348510047,1736596277788,-500.0,0.00011542,2]
[348510048,1736596277798,-500.0,0.00011542,2]
[348510049,1736596277807,-500.0,0.00011542,2]
[348510050,1736596277817,-500.0,0.00011542,2]
[348510051,1736596277827,-500.0,0.00011542,2]
[348510052,1736596277836,-500.0,0.00011542,2]
[348510053,1736596277847,-785.37,0.00011542,2]
[348510054,1736596277857,-500.0,0.00011542,2]
[348510055,1736596277867,-500.0,0.00011542,2]
[348510056,1736596277877,-500.0,0.00011542,2]
[348510057,1736596277887,-500.0,0.00011542,2]
[348510058,1736596277896,-623.35,0.00011542,2]
[348510059,1736596277906,-488.57,0.00011542,2]
[348510060,1736596277917,-500.0,0.00011542,2]
[348510061,1736596277926,-500.0,0.00011542,2]
[348510062,1736596277936,-500.0,0.00011542,2]
[348510063,1736596277945,-500.0,0.00011542,2]
[348510064,1736596277955,-767.07,0.00011542,2]
[348510065,1736596277965,-500.0,0.00011542,2]
[348510066,1736596277975,-500.0,0.00011542,2]
[348510067,1736596277984,-807.87,0.00011542,2]
[348510068,1736596277994,-500.0,0.00011542,2]
[348510069,1736596278003,-545.4,0.00011542,2]
[348510070,1736596278013,-655.09,0.00011542,2]
[348510071,1736596278022,-500.0,0.00011542,2]
[348510072,1736596278032,-565.57,0.00011542,2]
[348510073,1736596278042,-500.0,0.00011542,2]
[348510074,1736596278052,-555.45,0.00011542,2]
[348510075,1736596278061,-500.0,0.00011542,2]
[348510076,1736596278071,-500.0,0.00011542,2]
[348510077,1736596278081,-763.42,0.00011542,2]
[348510078,1736596278091,-875.44,0.00011542,2]
[348510079,1736596278101,-500.0,0.00011542,2]
[348510080,1736596278112,-500.0,0.00011542,2]
[348510081,1736596278122,-500.0,0.00011542,2]
[348510082,1736596278133,-500.0,0.00011542,2]
[348510083,1736596278144,-500.0,0.00011542,2]
[348510084,1736596278155,-500.0,0.00011542,2]
[348510085,1736596278166,-500.0,0.00011542,2]
[348510086,1736596278178,-820.5,0.00011542,2]
[348510087,1736596278188,-901.65,0.00011542,2]
[348510088,1736596278200,-500.0,0.00011542,2]
[348510089,1736596278211,-500.0,0.00011542,2]
[348510090,1736596278221,-500.0,0.00011542,2]
[348510091,1736596278232,-892.97,0.00011542,2]
[348510092,1736596278242,-500.0,0.00011542,2]
[348510093,1736596278252,-500.0,0.00011542,2]
[348510094,1736596278262,-345.60288377,0.00011542,2]
[348510095,1736596278272,-500.0,0.00011542,2]
[348510096,1736596278283,-883.1,0.00011542,2]
[348510097,1736596278294,-500.0,0.00011542,2]
[348510098,1736596278304,-500.0,0.00011542,2]
[348510099,1736596278319,-500.0,0.00011542,2]
[348510100,1736596278329,-601.65,0.00011542,2]
[348510101,1736596278340,-500.0,0.00011542,2]
[348510102,1736596278350,-500.0,0.00011542,2]
[348510103,1736596278361,-554.16,0.00011542,2]
[348510104,1736596278371,-500.0,0.00011542,2]
[348510105,1736596278381,-585.57,0.00011542,2]
[348510106,1736596278392,-500.0,0.00011542,2]
[348510107,1736596278402,-525.07,0.00011542,2]
[348510108,1736596278412,-885.34,0.00011542,2]
[348510109,1736596278422,-500.0,0.00011542,2]
[348510110,1736596278432,-500.0,0.00011542,2]
[348510111,1736596278442,-801.83,0.00011542,2]
[348510112,1736596278452,-204.36036073,0.00011542,2]
[348510113,1736596278462,-500.0,0.00011542,2]
[348510114,1736596278472,-1000.13,0.00011542,2]
[348510115,1736596278482,-500.0,0.00011542,2]
[348510116,1736596278492,-500.0,0.00011542,2]
[348510117,1736596278503,-500.0,0.00011542,2]
[348510118,1736596278515,-500.0,0.00011542,2]
[348510119,1736596278525,-500.0,0.00011542,2]
[348510120,1736596278535,-500.0,0.00011542,2]
[348510121,1736596278547,-500.0,0.00011542,2]
[348510122,1736596278557,-500.0,0.00011542,2]
[348510123,1736596278569,-672.82,0.00011542,2]
[348510124,1736596278579,-500.0,0.00011542,2]
[348510125,1736596278589,-4278.41,0.00011542,2]
[348510126,1736596278599,-500.0,0.00011542,2]
[348510127,1736596278610,-500.0,0.00011542,2]
[348510128,1736596278620,-500.0,0.00011542,2]
[348510129,1736596278631,-500.0,0.00011542,2]
[348510130,1736596278642,-500.0,0.00011542,2]
[348510131,1736596278653,-879.57,0.00011542,2]
[348510132,1736596278663,-500.0,0.00011542,2]
[348510133,1736596278673,-844.74,0.00011542,2]
[348510134,1736596278683,-500.0,0.00011542,2]
[348510135,1736596278693,-814.37,0.00011542,2]
[348510136,1736596278703,-609.37,0.00011542,2]
[348510137,1736596278713,-500.0,0.00011542,2]
[348510138,1736596278723,-500.0,0.00011542,2]
[348510139,1736596278734,-2856.04,0.00011542,2]
[348510140,1736596278744,-503.15,0.00011542,2]
[348510141,1736596278754,-500.0,0.00011542,2]
[348510142,1736596278765,-610.95,0.00011542,2]
[348510143,1736596278775,-514.77,0.00011542,2]
[348510144,1736596278785,-1172.7,0.00011542,2]
[348510145,1736596278795,-500.0,0.00011542,2]
[348510146,1736596278806,-587.45,0.00011542,2]
[348510147,1736596278816,-500.0,0.00011542,2]
[348510148,1736596278826,-1377.95,0.00011543,2]
[348510149,1736596278994,-2744.47,0.00011543,2]
[348510150,1736596279004,-1630.7,0.00011543,2]
[348510151,1736596279013,-2556.83,0.00011543,2]
[348510152,1736596279023,-1577.16,0.00011543,2]
[348510153,1736596279033,-3568.78,0.00011543,2]
[348510154,1736596279042,-500.0,0.00011543,2]
[348510155,1736596279052,-1343.06,0.00011543,2]
[348510156,1736596279061,-500.0,0.00011543,2]
[348510157,1736596279071,-1196.49,0.00011543,2]
[348510158,1736596279080,-1311.0,0.00011543,2]
[348510159,1736596279090,-1420.14,0.00011543,2]
[348510160,1736596279099,-1360.97,0.00011543,2]
[348510161,1736596279108,-2542.05,0.00011543,2]
[348510162,1736596279118,-1429.7,0.00011543,2]
[348510163,1736596279127,-1960.18,0.00011543,2]
[348510164,1736596279136,-1234.77,0.00011543,2]